[Event "December 12 Late 2023"]
[Site "https://www.chess.com"]
[Date "2023.12.12"]
[Round "7"]
[White "Avila Rodriguez, Joshua Ad"]
[Black "Estrada Nieto, Julian"]
[Result "1-0"]
[Board "76"]
[TimeControl "180+1"]
[WhiteFideId "5126444"]
[BlackFideId "5101018"]
[WhiteElo "2426"]
[BlackElo "2536"]
[WhiteTeam "MEX"]
[BlackTeam "ESP"]
[WhiteClock "0:01:48"]
[BlackClock "0:01:44"]

1. Nf3 {[%clk 0:02:57]}  d5 {[%clk 0:02:57]} 2. g3 {[%clk 0:02:57]}  Nf6 {[%clk 0:02:57]} 3. Bg2 {[%clk 0:02:57]}  Bf5 {[%clk 0:02:58]} 4. O-O {[%clk 0:02:57]}  e6 {[%clk 0:02:58]} 5. d3 {[%clk 0:02:57]}  h6 {[%clk 0:02:57]} 6. Nbd2 {[%clk 0:02:58]}  Nbd7 {[%clk 0:02:57]} 7. b3 {[%clk 0:02:58]}  Bd6 {[%clk 0:02:52]} 8. Bb2 {[%clk 0:02:58]}  O-O {[%clk 0:02:53]} 9. c4 {[%clk 0:02:53]}  c6 {[%clk 0:02:51]} 10. Rc1 {[%clk 0:02:46]}  Qe7 {[%clk 0:02:48]} 11. Rc2 {[%clk 0:02:43]}  Rfe8 {[%clk 0:02:44]} 12. Re1 {[%clk 0:02:36]}  Bb4 {[%clk 0:02:41]} 13. Ne5 {[%clk 0:02:26]}  Nxe5 {[%clk 0:02:40]} 14. Bxe5 {[%clk 0:02:26]}  Rad8 {[%clk 0:02:32]} 15. Qa1 {[%clk 0:02:23]}  Rf8 {[%clk 0:02:00]} 16. Rec1 {[%clk 0:02:16]}  Ba3 {[%clk 0:01:57]} 17. Rd1 {[%clk 0:02:14]}  Ne8 {[%clk 0:01:55]} 18. Nf3 {[%clk 0:01:53]}  f6 {[%clk 0:01:51]} 19. Bb2 {[%clk 0:01:51]}  Nd6 {[%clk 0:01:44]} 20. Bxa3 {[%clk 0:01:48]} 1-0

[Event "December 12 Late 2023"]
[Site "https://www.chess.com"]
[Date "2023.12.12"]
[Round "7"]
[White "Adamczyk, Zuzanna"]
[Black "Rodgers, Jack"]
[Result "1-0"]
[Board "80"]
[TimeControl "180+1"]
[WhiteFideId "1187570"]
[BlackFideId "3220885"]
[WhiteElo "2377"]
[BlackElo "2525"]
[WhiteTeam "POL"]
[BlackTeam "AUS"]
[WhiteClock "0:00:07"]
[BlackClock "0:00:05"]

1. Nf3 {[%clk 0:03:00]}  c5 {[%clk 0:03:00]} 2. e3 {[%clk 0:03:00]}  g6 {[%clk 0:02:59]} 3. b3 {[%clk 0:02:54]}  Bg7 {[%clk 0:02:59]} 4. Nc3 {[%clk 0:02:53]}  Nf6 {[%clk 0:02:59]} 5. Bb2 {[%clk 0:02:54]}  Ne4 {[%clk 0:02:57]} 6. Nxe4 {[%clk 0:02:50]}  Bxb2 {[%clk 0:02:56]} 7. Nxc5 {[%clk 0:02:51]}  Bxa1 {[%clk 0:02:54]} 8. Qxa1 {[%clk 0:02:52]}  f6 {[%clk 0:02:52]} 9. h3 {[%clk 0:02:52]}  b6 {[%clk 0:02:49]} 10. Nd3 {[%clk 0:02:49]}  Bb7 {[%clk 0:02:48]} 11. h4 {[%clk 0:02:49]}  Nc6 {[%clk 0:02:34]} 12. h5 {[%clk 0:02:48]}  Kf7 {[%clk 0:02:24]} 13. Nf4 {[%clk 0:02:39]}  d5 {[%clk 0:02:07]} 14. Nxd5 {[%clk 0:02:03]}  Na5 {[%clk 0:01:24]} 15. Nf4 {[%clk 0:02:02]}  Bxf3 {[%clk 0:01:20]} 16. gxf3 {[%clk 0:02:01]}  Rc8 {[%clk 0:01:19]} 17. Bh3 {[%clk 0:01:38]}  Rc6 {[%clk 0:01:18]} 18. b4 {[%clk 0:01:24]}  Nc4 {[%clk 0:01:18]} 19. Qc3 {[%clk 0:01:23]}  Ne5 {[%clk 0:01:14]} 20. Qb3+ {[%clk 0:01:22]}  Ke8 {[%clk 0:00:56]} 21. d4 {[%clk 0:00:52]}  Nxf3+ {[%clk 0:00:52]} 22. Ke2 {[%clk 0:00:52]}  Nxd4+ {[%clk 0:00:39]} 23. exd4 {[%clk 0:00:52]}  Qxd4 {[%clk 0:00:40]} 24. Rd1 {[%clk 0:00:35]}  Qe4+ {[%clk 0:00:23]} 25. Qe3 {[%clk 0:00:35]}  Rxc2+ {[%clk 0:00:20]} 26. Rd2 {[%clk 0:00:35]}  Qc4+ {[%clk 0:00:17]} 27. Kf3 {[%clk 0:00:30]}  Qc6+ {[%clk 0:00:12]} 28. Kg3 {[%clk 0:00:25]}  Rxd2 {[%clk 0:00:09]} 29. Qxd2 {[%clk 0:00:25]}  gxh5 {[%clk 0:00:09]} 30. Be6 {[%clk 0:00:17]}  h4+ {[%clk 0:00:07]} 31. Kxh4 {[%clk 0:00:07]}  h5 {[%clk 0:00:08]} 32. Qd3 {[%clk 0:00:05]}  Qh1+ {[%clk 0:00:07]} 33. Kg3 {[%clk 0:00:04]}  Qc6 {[%clk 0:00:07]} 34. Qg6+ {[%clk 0:00:04]}  Kd8 {[%clk 0:00:08]} 35. Qg7 {[%clk 0:00:03]}  h4+ {[%clk 0:00:08]} 36. Kh3 {[%clk 0:00:03]}  Qe8 {[%clk 0:00:05]} 37. Bf7 {[%clk 0:00:02]}  Qf8 {[%clk 0:00:04]} 38. Ne6+ {[%clk 0:00:03]}  Kd7 {[%clk 0:00:04]} 39. Nxf8+ {[%clk 0:00:03]}  Rxf8 {[%clk 0:00:03]} 40. Qxf8 {[%clk 0:00:04]}  a5 {[%clk 0:00:04]} 41. Qe8+ {[%clk 0:00:05]}  Kd6 {[%clk 0:00:04]} 42. Qd8+ {[%clk 0:00:06]}  Ke5 {[%clk 0:00:05]} 43. Qxe7+ {[%clk 0:00:07]}  Kd4 {[%clk 0:00:05]} 44. Qxf6+ {[%clk 0:00:07]} 1-0

[Event "December 12 Late 2023"]
[Site "https://www.chess.com"]
[Date "2023.12.12"]
[Round "7"]
[White "Marcziter, Dmitrii"]
[Black "YurasovMat-2012"]
[Result "0-1"]
[Board "82"]
[TimeControl "180+1"]
[WhiteFideId "13900765"]
[WhiteElo "2336"]
[BlackElo "2524"]
[WhiteTeam "GER"]
[WhiteClock "0:00:00"]
[BlackClock "0:01:08"]

1. d4 {[%clk 0:02:51]}  d5 {[%clk 0:02:58]} 2. Nf3 {[%clk 0:02:48]}  c6 {[%clk 0:02:59]} 3. c4 {[%clk 0:02:48]}  Nf6 {[%clk 0:03:00]} 4. Nc3 {[%clk 0:02:47]}  dxc4 {[%clk 0:03:00]} 5. a4 {[%clk 0:02:47]}  Bf5 {[%clk 0:02:57]} 6. e3 {[%clk 0:02:46]}  Na6 {[%clk 0:02:55]} 7. Bxc4 {[%clk 0:02:43]}  Nb4 {[%clk 0:02:55]} 8. O-O {[%clk 0:02:43]}  e6 {[%clk 0:02:55]} 9. a5 {[%clk 0:02:41]}  Bd6 {[%clk 0:02:54]} 10. Qe2 {[%clk 0:02:38]}  Ne4 {[%clk 0:02:52]} 11. Bd2 {[%clk 0:02:24]}  Nxd2 {[%clk 0:02:47]} 12. Qxd2 {[%clk 0:02:19]}  O-O {[%clk 0:02:47]} 13. h3 {[%clk 0:02:04]}  Nd5 {[%clk 0:02:40]} 14. a6 {[%clk 0:01:53]}  b5 {[%clk 0:02:36]} 15. Bb3 {[%clk 0:01:45]}  Qf6 {[%clk 0:02:32]} 16. Qe2 {[%clk 0:01:36]}  Nxc3 {[%clk 0:02:28]} 17. bxc3 {[%clk 0:01:35]}  Be4 {[%clk 0:02:13]} 18. Nd2 {[%clk 0:01:33]}  Bg6 {[%clk 0:02:12]} 19. e4 {[%clk 0:01:26]}  e5 {[%clk 0:02:09]} 20. d5 {[%clk 0:01:24]}  cxd5 {[%clk 0:02:07]} 21. Bxd5 {[%clk 0:01:23]}  Rab8 {[%clk 0:02:07]} 22. Rfb1 {[%clk 0:01:20]}  Qg5 {[%clk 0:02:04]} 23. Nf3 {[%clk 0:01:16]}  Qf4 {[%clk 0:02:02]} 24. Qd2 {[%clk 0:01:07]}  Qf6 {[%clk 0:01:57]} 25. Qg5 {[%clk 0:01:00]}  Qxg5 {[%clk 0:01:50]} 26. Nxg5 {[%clk 0:01:00]}  Rfd8 {[%clk 0:01:50]} 27. Rb3 {[%clk 0:00:54]}  Rdc8 {[%clk 0:01:46]} 28. Rab1 {[%clk 0:00:47]}  Rc5 {[%clk 0:01:45]} 29. Bb7 {[%clk 0:00:44]}  h6 {[%clk 0:01:41]} 30. Nf3 {[%clk 0:00:43]}  f6 {[%clk 0:01:32]} 31. Rxb5 {[%clk 0:00:39]}  Rxb5 {[%clk 0:01:30]} 32. Rxb5 {[%clk 0:00:39]}  Bxe4 {[%clk 0:01:31]} 33. c4 {[%clk 0:00:27]}  Bf5 {[%clk 0:01:28]} 34. c5 {[%clk 0:00:25]}  Bc7 {[%clk 0:01:26]} 35. Nd2 {[%clk 0:00:19]}  Rd8 {[%clk 0:01:21]} 36. Nc4 {[%clk 0:00:18]}  Bd3 {[%clk 0:01:11]} 37. Rb4 {[%clk 0:00:16]}  Rd4 {[%clk 0:01:10]} 38. Kh2 {[%clk 0:00:10]}  e4+ {[%clk 0:01:08]} 39. g3 {[%clk 0:00:00]}  Kf8 {[%clk 0:01:08]} 0-1

[Event "December 12 Late 2023"]
[Site "https://www.chess.com"]
[Date "2023.12.12"]
[Round "7"]
[White "Kopczynski, Michal"]
[Black "Gerbelli Neto, Eduardo"]
[Result "1-0"]
[Board "83"]
[TimeControl "180+1"]
[WhiteFideId "1124200"]
[BlackFideId "2103281"]
[WhiteElo "2521"]
[BlackElo "2352"]
[WhiteTeam "POL"]
[BlackTeam "BRA"]
[WhiteClock "0:00:47"]
[BlackClock "0:00:00"]

1. e4 {[%clk 0:03:00]}  e5 {[%clk 0:02:59]} 2. Nf3 {[%clk 0:03:00]}  Nc6 {[%clk 0:02:59]} 3. Bb5 {[%clk 0:03:01]}  a6 {[%clk 0:02:59]} 4. Ba4 {[%clk 0:03:01]}  d6 {[%clk 0:02:59]} 5. h3 {[%clk 0:03:01]}  f5 {[%clk 0:02:58]} 6. d3 {[%clk 0:03:01]}  Nf6 {[%clk 0:02:57]} 7. Nc3 {[%clk 0:03:01]}  Be7 {[%clk 0:02:57]} 8. Bb3 {[%clk 0:02:56]}  Na5 {[%clk 0:02:56]} 9. Bg5 {[%clk 0:02:53]}  Nxb3 {[%clk 0:02:56]} 10. axb3 {[%clk 0:02:54]}  O-O {[%clk 0:02:56]} 11. Qd2 {[%clk 0:02:50]}  h6 {[%clk 0:02:52]} 12. Bxf6 {[%clk 0:02:49]}  Bxf6 {[%clk 0:02:53]} 13. O-O-O {[%clk 0:02:49]}  c6 {[%clk 0:02:53]} 14. exf5 {[%clk 0:02:40]}  Bxf5 {[%clk 0:02:52]} 15. g4 {[%clk 0:02:39]}  Be6 {[%clk 0:02:38]} 16. Kb1 {[%clk 0:02:39]}  b5 {[%clk 0:02:00]} 17. Rdg1 {[%clk 0:02:37]}  Bg5 {[%clk 0:01:50]} 18. Qe2 {[%clk 0:02:33]}  Bd5 {[%clk 0:01:44]} 19. Nxd5 {[%clk 0:02:23]}  cxd5 {[%clk 0:01:45]} 20. h4 {[%clk 0:02:23]}  Bf4 {[%clk 0:01:45]} 21. g5 {[%clk 0:02:22]}  h5 {[%clk 0:01:31]} 22. g6 {[%clk 0:02:22]}  Qf6 {[%clk 0:01:19]} 23. Ng5 {[%clk 0:00:57]}  Qxg6 {[%clk 0:01:04]} 24. Nh3 {[%clk 0:00:57]}  Qh6 {[%clk 0:00:56]} 25. Nxf4 {[%clk 0:00:57]}  Rxf4 {[%clk 0:00:56]} 26. Rg5 {[%clk 0:00:57]}  g6 {[%clk 0:00:49]} 27. Rhg1 {[%clk 0:00:55]}  Rf6 {[%clk 0:00:50]} 28. Rxh5 {[%clk 0:00:54]}  Qf4 {[%clk 0:00:25]} 29. Rhg5 {[%clk 0:00:54]}  Kf7 {[%clk 0:00:22]} 30. h5 {[%clk 0:00:52]}  Rg8 {[%clk 0:00:22]} 31. hxg6+ {[%clk 0:00:47]}  Rgxg6 {[%clk 0:00:00]} 32. Qh5 {[%clk 0:00:47]} 1-0

[Event "December 12 Late 2023"]
[Site "https://www.chess.com"]
[Date "2023.12.12"]
[Round "7"]
[White "Shapiro, Viktor"]
[Black "Awoki, Daniel Teidi"]
[Result "1-0"]
[Board "84"]
[TimeControl "180+1"]
[WhiteFideId "4175700"]
[BlackFideId "2100827"]
[WhiteElo "2521"]
[BlackElo "2270"]
[WhiteTeam "RUS"]
[BlackTeam "BRA"]
[WhiteClock "0:00:04"]
[BlackClock "0:00:02"]

1. c4 {[%clk 0:03:00]}  e5 {[%clk 0:02:59]} 2. Nc3 {[%clk 0:03:00]}  Nf6 {[%clk 0:03:00]} 3. g3 {[%clk 0:03:01]}  d5 {[%clk 0:03:00]} 4. cxd5 {[%clk 0:03:01]}  Nxd5 {[%clk 0:03:01]} 5. Bg2 {[%clk 0:03:01]}  Nb6 {[%clk 0:03:02]} 6. Nf3 {[%clk 0:03:01]}  Nc6 {[%clk 0:03:02]} 7. d3 {[%clk 0:03:01]}  Be7 {[%clk 0:03:03]} 8. O-O {[%clk 0:03:02]}  O-O {[%clk 0:03:04]} 9. a3 {[%clk 0:03:02]}  Re8 {[%clk 0:03:04]} 10. b4 {[%clk 0:03:02]}  a5 {[%clk 0:03:04]} 11. b5 {[%clk 0:03:02]}  Nd4 {[%clk 0:03:05]} 12. Nd2 {[%clk 0:03:02]}  a4 {[%clk 0:03:04]} 13. e3 {[%clk 0:02:57]}  Ne6 {[%clk 0:03:00]} 14. Nf3 {[%clk 0:02:42]}  f6 {[%clk 0:02:52]} 15. Qe2 {[%clk 0:02:21]}  Nc5 {[%clk 0:02:44]} 16. Rd1 {[%clk 0:02:20]}  Nb3 {[%clk 0:02:44]} 17. Ra2 {[%clk 0:02:08]}  Nxc1 {[%clk 0:02:43]} 18. Rxc1 {[%clk 0:02:07]}  Be6 {[%clk 0:02:39]} 19. Raa1 {[%clk 0:02:07]}  Nd5 {[%clk 0:02:33]} 20. Ne4 {[%clk 0:02:06]}  Ra5 {[%clk 0:02:28]} 21. d4 {[%clk 0:02:04]}  Nb6 {[%clk 0:02:15]} 22. dxe5 {[%clk 0:01:56]}  fxe5 {[%clk 0:02:08]} 23. Nxe5 {[%clk 0:01:44]}  Bd5 {[%clk 0:02:07]} 24. f4 {[%clk 0:01:36]}  Bf6 {[%clk 0:01:56]} 25. Rd1 {[%clk 0:01:21]}  Bxe5 {[%clk 0:01:51]} 26. fxe5 {[%clk 0:01:21]}  Rxe5 {[%clk 0:01:51]} 27. Nc3 {[%clk 0:01:21]}  Qg5 {[%clk 0:01:38]} 28. Nxd5 {[%clk 0:01:15]}  Nxd5 {[%clk 0:01:37]} 29. Qc4 {[%clk 0:01:08]}  Qxe3+ {[%clk 0:01:26]} 30. Kh1 {[%clk 0:01:08]}  c6 {[%clk 0:01:18]} 31. bxc6 {[%clk 0:01:08]}  bxc6 {[%clk 0:01:17]} 32. Qxc6 {[%clk 0:01:07]}  Rc5 {[%clk 0:01:04]} 33. Qa8+ {[%clk 0:01:00]}  Kf7 {[%clk 0:00:57]} 34. Qxa4 {[%clk 0:00:51]}  Nc3 {[%clk 0:00:50]} 35. Rf1+ {[%clk 0:00:47]}  Kg6 {[%clk 0:00:45]} 36. Qd7 {[%clk 0:00:37]}  h6 {[%clk 0:00:39]} 37. Qf7+ {[%clk 0:00:20]}  Kh7 {[%clk 0:00:38]} 38. a4 {[%clk 0:00:20]}  Ne4 {[%clk 0:00:33]} 39. Qf3 {[%clk 0:00:16]}  Qd2 {[%clk 0:00:26]} 40. Rad1 {[%clk 0:00:13]}  Qb2 {[%clk 0:00:24]} 41. Kg1 {[%clk 0:00:09]}  Rc2 {[%clk 0:00:20]} 42. Rde1 {[%clk 0:00:08]}  Nd2 {[%clk 0:00:13]} 43. Qd3+ {[%clk 0:00:06]}  Kg8 {[%clk 0:00:04]} 44. Rxe5 {[%clk 0:00:06]}  Qxe5 {[%clk 0:00:04]} 45. Qxc2 {[%clk 0:00:05]}  Nxf1 {[%clk 0:00:04]} 46. Qc4+ {[%clk 0:00:04]}  Kh8 {[%clk 0:00:03]} 47. Qxf1 {[%clk 0:00:04]}  Qd4+ {[%clk 0:00:03]} 48. Kh1 {[%clk 0:00:04]}  Qxa4 {[%clk 0:00:04]} 49. Bf3 {[%clk 0:00:04]}  Qd7 {[%clk 0:00:03]} 50. Qe2 {[%clk 0:00:05]}  Qf7 {[%clk 0:00:03]} 51. Kg2 {[%clk 0:00:05]}  Qf6 {[%clk 0:00:04]} 52. h4 {[%clk 0:00:05]}  Qf8 {[%clk 0:00:04]} 53. h5 {[%clk 0:00:06]}  Qf6 {[%clk 0:00:05]} 54. Be4 {[%clk 0:00:06]}  Qf8 {[%clk 0:00:04]} 55. Qd3 {[%clk 0:00:06]}  Qb8 {[%clk 0:00:05]} 56. Bg6 {[%clk 0:00:06]}  Qf8 {[%clk 0:00:04]} 57. Qe4 {[%clk 0:00:06]}  Qb8 {[%clk 0:00:05]} 58. Qe8+ {[%clk 0:00:06]}  Qxe8 {[%clk 0:00:05]} 59. Bxe8 {[%clk 0:00:07]}  Kg8 {[%clk 0:00:05]} 60. Bg6 {[%clk 0:00:08]}  Kf8 {[%clk 0:00:06]} 61. Kf3 {[%clk 0:00:09]}  Ke7 {[%clk 0:00:06]} 62. Kf4 {[%clk 0:00:09]}  Kf6 {[%clk 0:00:07]} 63. Ke4 {[%clk 0:00:09]}  Ke6 {[%clk 0:00:08]} 64. Bf5+ {[%clk 0:00:09]}  Kf6 {[%clk 0:00:08]} 65. Kf4 {[%clk 0:00:09]}  Kf7 {[%clk 0:00:07]} 66. Ke5 {[%clk 0:00:09]}  Ke7 {[%clk 0:00:08]} 67. Bg6 {[%clk 0:00:08]}  Kf8 {[%clk 0:00:08]} 68. Ke6 {[%clk 0:00:09]}  Kg8 {[%clk 0:00:08]} 69. Kf5 {[%clk 0:00:08]}  Kf8 {[%clk 0:00:09]} 70. Kg4 {[%clk 0:00:08]}  Ke7 {[%clk 0:00:09]} 71. Bh7 {[%clk 0:00:09]}  Kf6 {[%clk 0:00:09]} 72. Bg8 {[%clk 0:00:08]}  Ke5 {[%clk 0:00:08]} 73. Bb3 {[%clk 0:00:08]}  Ke4 {[%clk 0:00:09]} 74. Bc2+ {[%clk 0:00:06]}  Ke5 {[%clk 0:00:09]} 75. Kh4 {[%clk 0:00:06]}  Kf6 {[%clk 0:00:08]} 76. g4 {[%clk 0:00:06]}  Ke5 {[%clk 0:00:08]} 77. g5 {[%clk 0:00:05]}  Ke6 {[%clk 0:00:05]} 78. Kg4 {[%clk 0:00:05]}  hxg5 {[%clk 0:00:05]} 79. Kxg5 {[%clk 0:00:05]}  Kf7 {[%clk 0:00:06]} 80. Bh7 {[%clk 0:00:04]}  Kf8 {[%clk 0:00:02]} 81. Kg6 {[%clk 0:00:04]} 1-0

[Event "December 12 Late 2023"]
[Site "https://www.chess.com"]
[Date "2023.12.12"]
[Round "7"]
[White "Melikhov, Evgeny V."]
[Black "Saravana, Krishnan P."]
[Result "1/2-1/2"]
[Board "87"]
[TimeControl "180+1"]
[WhiteFideId "4122046"]
[BlackFideId "5018382"]
[WhiteElo "2413"]
[BlackElo "2607"]
[WhiteTeam "GRE"]
[BlackTeam "IND"]
[WhiteClock "0:00:09"]
[BlackClock "0:00:57"]

1. d4 {[%clk 0:03:00]}  Nf6 {[%clk 0:02:59]} 2. c4 {[%clk 0:03:00]}  e6 {[%clk 0:02:59]} 3. Nc3 {[%clk 0:03:00]}  Bb4 {[%clk 0:02:59]} 4. Qc2 {[%clk 0:03:00]}  O-O {[%clk 0:02:58]} 5. e4 {[%clk 0:03:00]}  d6 {[%clk 0:02:57]} 6. e5 {[%clk 0:03:00]}  Nfd7 {[%clk 0:02:56]} 7. Nf3 {[%clk 0:02:59]}  Nc6 {[%clk 0:02:54]} 8. Bf4 {[%clk 0:02:54]}  Nxd4 {[%clk 0:02:53]} 9. Nxd4 {[%clk 0:02:50]}  dxe5 {[%clk 0:02:53]} 10. Be3 {[%clk 0:02:13]}  exd4 {[%clk 0:02:53]} 11. Bxd4 {[%clk 0:02:13]}  c5 {[%clk 0:02:50]} 12. Be3 {[%clk 0:02:09]}  b6 {[%clk 0:02:46]} 13. Bd3 {[%clk 0:02:06]}  Bb7 {[%clk 0:02:28]} 14. Bxh7+ {[%clk 0:02:05]}  Kh8 {[%clk 0:02:28]} 15. Be4 {[%clk 0:02:03]}  Bxc3+ {[%clk 0:02:26]} 16. bxc3 {[%clk 0:02:01]}  Bxe4 {[%clk 0:02:22]} 17. Qxe4 {[%clk 0:02:01]}  Qf6 {[%clk 0:02:21]} 18. Rc1 {[%clk 0:01:49]}  Ne5 {[%clk 0:02:20]} 19. O-O {[%clk 0:01:44]}  Qf5 {[%clk 0:02:19]} 20. Qh4+ {[%clk 0:01:10]}  Qh7 {[%clk 0:02:10]} 21. Qf4 {[%clk 0:01:05]}  Nd3 {[%clk 0:02:09]} 22. Qc7 {[%clk 0:01:01]}  Nxc1 {[%clk 0:02:07]} 23. Rxc1 {[%clk 0:01:01]}  Kg8 {[%clk 0:02:06]} 24. h3 {[%clk 0:00:58]}  Rfd8 {[%clk 0:02:05]} 25. a4 {[%clk 0:00:55]}  Qe4 {[%clk 0:02:03]} 26. a5 {[%clk 0:00:50]}  Qxc4 {[%clk 0:02:03]} 27. axb6 {[%clk 0:00:49]}  axb6 {[%clk 0:02:02]} 28. Qxb6 {[%clk 0:00:49]}  Rd5 {[%clk 0:01:57]} 29. Kh2 {[%clk 0:00:25]}  Qa4 {[%clk 0:01:52]} 30. c4 {[%clk 0:00:22]}  Rf5 {[%clk 0:01:48]} 31. Bxc5 {[%clk 0:00:20]}  Rc8 {[%clk 0:01:45]} 32. Be3 {[%clk 0:00:18]}  Rxc4 {[%clk 0:01:42]} 33. Rxc4 {[%clk 0:00:18]}  Qxc4 {[%clk 0:01:41]} 34. Qb8+ {[%clk 0:00:18]}  Kh7 {[%clk 0:01:40]} 35. Qd6 {[%clk 0:00:18]}  Qe4 {[%clk 0:01:38]} 36. Qd1 {[%clk 0:00:17]}  Qe5+ {[%clk 0:01:33]} 37. Kg1 {[%clk 0:00:17]}  Rf6 {[%clk 0:01:32]} 38. Qd3+ {[%clk 0:00:16]}  Qf5 {[%clk 0:01:31]} 39. Qxf5+ {[%clk 0:00:16]}  Rxf5 {[%clk 0:01:31]} 40. g4 {[%clk 0:00:15]}  Rd5 {[%clk 0:01:31]} 41. Kg2 {[%clk 0:00:15]}  Kg6 {[%clk 0:01:29]} 42. h4 {[%clk 0:00:15]}  f5 {[%clk 0:01:27]} 43. h5+ {[%clk 0:00:13]}  Kf6 {[%clk 0:01:27]} 44. g5+ {[%clk 0:00:13]}  Kf7 {[%clk 0:01:27]} 45. f4 {[%clk 0:00:12]}  e5 {[%clk 0:01:25]} 46. fxe5 {[%clk 0:00:12]}  Rxe5 {[%clk 0:01:26]} 47. Bf4 {[%clk 0:00:12]}  Re4 {[%clk 0:01:26]} 48. Kf3 {[%clk 0:00:12]}  Re1 {[%clk 0:01:25]} 49. h6 {[%clk 0:00:12]}  gxh6 {[%clk 0:01:23]} 50. gxh6 {[%clk 0:00:12]}  Kg6 {[%clk 0:01:22]} 51. Kg3 {[%clk 0:00:12]}  Ra1 {[%clk 0:01:21]} 52. Kf3 {[%clk 0:00:11]}  Ra3+ {[%clk 0:01:21]} 53. Kg2 {[%clk 0:00:11]}  Ra7 {[%clk 0:01:19]} 54. Kf3 {[%clk 0:00:11]}  Kh5 {[%clk 0:01:20]} 55. Be3 {[%clk 0:00:10]}  Kg6 {[%clk 0:01:17]} 56. Bf4 {[%clk 0:00:10]}  Re7 {[%clk 0:01:17]} 57. Kg3 {[%clk 0:00:09]}  Rd7 {[%clk 0:01:15]} 58. Kf3 {[%clk 0:00:09]}  Rd3+ {[%clk 0:01:12]} 59. Kg2 {[%clk 0:00:09]}  Rb3 {[%clk 0:01:04]} 60. Kf2 {[%clk 0:00:09]}  Ra3 {[%clk 0:01:01]} 61. Kg2 {[%clk 0:00:09]}  Kh5 {[%clk 0:01:01]} 62. h7 {[%clk 0:00:08]}  Ra2+ {[%clk 0:00:58]} 63. Kf3 {[%clk 0:00:08]}  Ra8 {[%clk 0:00:57]} 64. Be5 {[%clk 0:00:08]}  Kg6 {[%clk 0:00:57]} 65. h8=Q {[%clk 0:00:08]}  Rxh8 {[%clk 0:00:56]} 66. Bxh8 {[%clk 0:00:08]}  f4 {[%clk 0:00:57]} 67. Kxf4 {[%clk 0:00:09]} 1/2-1/2

[Event "December 12 Late 2023"]
[Site "https://www.chess.com"]
[Date "2023.12.12"]
[Round "7"]
[White "Rose, Felix"]
[Black "Chocenka, Dmitrijus"]
[Result "0-1"]
[Board "91"]
[TimeControl "180+1"]
[WhiteFideId "5105722"]
[BlackFideId "12802336"]
[WhiteElo "2332"]
[BlackElo "2494"]
[WhiteTeam "MEX"]
[BlackTeam "LTU"]
[WhiteClock "0:00:09"]
[BlackClock "0:00:16"]

1. d4 {[%clk 0:03:00]}  Nf6 {[%clk 0:02:59]} 2. Nf3 {[%clk 0:03:00]}  g6 {[%clk 0:02:59]} 3. Bg5 {[%clk 0:02:56]}  Bg7 {[%clk 0:02:58]} 4. Nbd2 {[%clk 0:02:56]}  d5 {[%clk 0:02:58]} 5. c3 {[%clk 0:02:54]}  O-O {[%clk 0:02:57]} 6. Bxf6 {[%clk 0:02:53]}  exf6 {[%clk 0:02:56]} 7. h4 {[%clk 0:02:53]}  h5 {[%clk 0:02:56]} 8. e3 {[%clk 0:02:53]}  Re8 {[%clk 0:02:56]} 9. Bd3 {[%clk 0:02:53]}  f5 {[%clk 0:02:55]} 10. O-O {[%clk 0:02:47]}  Nd7 {[%clk 0:02:53]} 11. g3 {[%clk 0:02:44]}  Nf6 {[%clk 0:02:53]} 12. c4 {[%clk 0:02:44]}  dxc4 {[%clk 0:02:47]} 13. Nxc4 {[%clk 0:02:45]}  Be6 {[%clk 0:02:45]} 14. Nce5 {[%clk 0:02:42]}  c6 {[%clk 0:02:42]} 15. Ng5 {[%clk 0:02:42]}  Bd5 {[%clk 0:02:41]} 16. Bc4 {[%clk 0:02:33]}  Re7 {[%clk 0:02:39]} 17. Qb3 {[%clk 0:02:30]}  Bxc4 {[%clk 0:02:34]} 18. Qxc4 {[%clk 0:02:28]}  Nd5 {[%clk 0:02:33]} 19. Ngf3 {[%clk 0:02:22]}  Bf6 {[%clk 0:02:26]} 20. b4 {[%clk 0:02:19]}  Kg7 {[%clk 0:02:25]} 21. a4 {[%clk 0:02:16]}  a6 {[%clk 0:02:24]} 22. b5 {[%clk 0:02:14]}  axb5 {[%clk 0:02:22]} 23. axb5 {[%clk 0:02:14]}  Rxa1 {[%clk 0:02:23]} 24. Rxa1 {[%clk 0:02:14]}  cxb5 {[%clk 0:02:09]} 25. Qxb5 {[%clk 0:02:14]}  Nc3 {[%clk 0:02:08]} 26. Qb3 {[%clk 0:02:08]}  Ne4 {[%clk 0:02:07]} 27. Ra7 {[%clk 0:01:51]}  Qb8 {[%clk 0:02:01]} 28. Qa2 {[%clk 0:01:48]}  Qc7 {[%clk 0:01:53]} 29. Ra8 {[%clk 0:01:33]}  b5 {[%clk 0:01:33]} 30. Ra6 {[%clk 0:00:58]}  Qc1+ {[%clk 0:01:28]} 31. Kg2 {[%clk 0:00:56]}  Bxe5 {[%clk 0:01:21]} 32. dxe5 {[%clk 0:00:48]}  Qc5 {[%clk 0:01:03]} 33. e6 {[%clk 0:00:43]}  f6 {[%clk 0:00:52]} 34. Ra8 {[%clk 0:00:35]}  Qc6 {[%clk 0:00:45]} 35. Ra7 {[%clk 0:00:32]}  Qc5 {[%clk 0:00:32]} 36. Rxe7+ {[%clk 0:00:30]}  Qxe7 {[%clk 0:00:32]} 37. Qd5 {[%clk 0:00:30]}  b4 {[%clk 0:00:29]} 38. Nd4 {[%clk 0:00:23]}  Nc5 {[%clk 0:00:22]} 39. Qc4 {[%clk 0:00:18]}  b3 {[%clk 0:00:17]} 40. Kh2 {[%clk 0:00:11]}  b2 {[%clk 0:00:13]} 41. Qb4 {[%clk 0:00:11]}  Qb7 {[%clk 0:00:12]} 42. Qxb7+ {[%clk 0:00:08]}  Nxb7 {[%clk 0:00:11]} 43. e7 {[%clk 0:00:08]}  Nd6 {[%clk 0:00:11]} 44. Nb5 {[%clk 0:00:07]}  Kf7 {[%clk 0:00:08]} 45. e8=Q+ {[%clk 0:00:04]}  Kxe8 {[%clk 0:00:06]} 46. Nc3 {[%clk 0:00:05]}  Kd7 {[%clk 0:00:06]} 47. Kg2 {[%clk 0:00:06]}  Kc6 {[%clk 0:00:07]} 48. Kf1 {[%clk 0:00:06]}  Nb5 {[%clk 0:00:07]} 49. Nb1 {[%clk 0:00:06]}  Kc5 {[%clk 0:00:07]} 50. Ke2 {[%clk 0:00:07]}  Kb4 {[%clk 0:00:08]} 51. Kd3 {[%clk 0:00:07]}  Na3 {[%clk 0:00:08]} 52. Nd2 {[%clk 0:00:03]}  b1=Q+ {[%clk 0:00:08]} 53. Nxb1 {[%clk 0:00:03]}  Nxb1 {[%clk 0:00:09]} 54. f3 {[%clk 0:00:04]}  Kc5 {[%clk 0:00:09]} 55. e4 {[%clk 0:00:04]}  fxe4+ {[%clk 0:00:08]} 56. Kxe4 {[%clk 0:00:05]}  Nd2+ {[%clk 0:00:08]} 57. Kf4 {[%clk 0:00:06]}  Kd5 {[%clk 0:00:08]} 58. g4 {[%clk 0:00:06]}  Ke6 {[%clk 0:00:08]} 59. gxh5 {[%clk 0:00:04]}  gxh5 {[%clk 0:00:09]} 60. Ke3 {[%clk 0:00:03]}  Nc4+ {[%clk 0:00:10]} 61. Kf4 {[%clk 0:00:04]}  Ne5 {[%clk 0:00:10]} 62. Ke4 {[%clk 0:00:04]}  f5+ {[%clk 0:00:11]} 63. Kf4 {[%clk 0:00:05]}  Kf6 {[%clk 0:00:12]} 64. Kg3 {[%clk 0:00:05]}  Ng6 {[%clk 0:00:12]} 65. Kh3 {[%clk 0:00:05]}  Ke5 {[%clk 0:00:13]} 66. Kg3 {[%clk 0:00:05]}  Nf4 {[%clk 0:00:13]} 67. Kf2 {[%clk 0:00:06]}  Nd5 {[%clk 0:00:13]} 68. Kg3 {[%clk 0:00:06]}  f4+ {[%clk 0:00:14]} 69. Kf2 {[%clk 0:00:06]}  Kd4 {[%clk 0:00:15]} 70. Kg2 {[%clk 0:00:07]}  Ke3 {[%clk 0:00:16]} 71. Kg1 {[%clk 0:00:07]}  Kxf3 {[%clk 0:00:16]} 72. Kh1 {[%clk 0:00:07]}  Ke2 {[%clk 0:00:17]} 73. Kh2 {[%clk 0:00:08]}  f3 {[%clk 0:00:17]} 74. Kh3 {[%clk 0:00:09]}  f2 {[%clk 0:00:17]} 75. Kh2 {[%clk 0:00:08]}  f1=Q {[%clk 0:00:16]} 76. Kg3 {[%clk 0:00:08]}  Qf4+ {[%clk 0:00:16]} 77. Kh3 {[%clk 0:00:09]}  Qg4+ {[%clk 0:00:16]} 78. Kh2 {[%clk 0:00:09]}  Kf2 {[%clk 0:00:16]} 79. Kh1 {[%clk 0:00:09]}  Qxh4# {[%clk 0:00:16]} 0-1